{"text_format":"3","workbook":"xlsx","n_sheets":2,"sheets":["Données relatives aux candidats","Données comparatives candidats"],"not_rendered":{"defined_names":4},"read":"whole","date_system":"1900"}

{"sheet":"Données relatives aux candidats","index":0,"n_rows":2,"n_cols":13,"rows_kept":2,"merged":[[0,0,0,3]]}
["Données relatives aux candidats"]
["Nom","Prénom","Deuxième prénom","Candidature pour le poste de","Réponse ?","Adresse postale","Téléphone personnel","Autre téléphone","Adresse de messagerie","Comment le C.V. nous est parvenu","Date de réception du C.V.","Nom du recruteur","Remarques du recruteur"]

{"sheet":"Données comparatives candidats","index":1,"n_rows":59,"n_cols":12,"rows_kept":59,"merged":[[0,0,0,3]]}
["Données comparatives sur les candidats"]
["Nom","Prénom","Deuxième prénom","Candidature pour le poste de","Employeur actuel","Poste actuel","Formation","Validité de la carte de séjour","Nombre d'années d'expérience","Compétences ou expérience correspondant au poste","Nom du recruteur","Remarques du recruteur"]
[{"$f":"IF('Données relatives aux candidats'!A3=\"\",\"\",'Données relatives aux candidats'!A3)","v":""},{"$f":"IF('Données relatives aux candidats'!B3=\"\",\"\",'Données relatives aux candidats'!B3)","v":""},{"$f":"IF('Données relatives aux candidats'!C3=\"\",\"\",'Données relatives aux candidats'!C3)","v":""},{"$f":"IF('Données relatives aux candidats'!D3=\"\",\"\",'Données relatives aux candidats'!D3)","v":""},{"$nulls":6},{"$f":"IF('Données relatives aux candidats'!L3=\"\",\"\",'Données relatives aux candidats'!L3)","v":""},{"$f":"IF('Données relatives aux candidats'!M3=\"\",\"\",'Données relatives aux candidats'!M3)","v":""}]
[{"$f":"IF('Données relatives aux candidats'!A4=\"\",\"\",'Données relatives aux candidats'!A4)","v":""},{"$f":"IF('Données relatives aux candidats'!B4=\"\",\"\",'Données relatives aux candidats'!B4)","v":""},{"$f":"IF('Données relatives aux candidats'!C4=\"\",\"\",'Données relatives aux candidats'!C4)","v":""},{"$f":"IF('Données relatives aux candidats'!D4=\"\",\"\",'Données relatives aux candidats'!D4)","v":""},{"$nulls":6},{"$f":"IF('Données relatives aux candidats'!L4=\"\",\"\",'Données relatives aux candidats'!L4)","v":""},{"$f":"IF('Données relatives aux candidats'!M4=\"\",\"\",'Données relatives aux candidats'!M4)","v":""}]
[{"$f":"IF('Données relatives aux candidats'!A5=\"\",\"\",'Données relatives aux candidats'!A5)","v":""},{"$f":"IF('Données relatives aux candidats'!B5=\"\",\"\",'Données relatives aux candidats'!B5)","v":""},{"$f":"IF('Données relatives aux candidats'!C5=\"\",\"\",'Données relatives aux candidats'!C5)","v":""},{"$f":"IF('Données relatives aux candidats'!D5=\"\",\"\",'Données relatives aux candidats'!D5)","v":""},{"$nulls":6},{"$f":"IF('Données relatives aux candidats'!L5=\"\",\"\",'Données relatives aux candidats'!L5)","v":""},{"$f":"IF('Données relatives aux candidats'!M5=\"\",\"\",'Données relatives aux candidats'!M5)","v":""}]
[{"$f":"IF('Données relatives aux candidats'!A6=\"\",\"\",'Données relatives aux candidats'!A6)","v":""},{"$f":"IF('Données relatives aux candidats'!B6=\"\",\"\",'Données relatives aux candidats'!B6)","v":""},{"$f":"IF('Données relatives aux candidats'!C6=\"\",\"\",'Données relatives aux candidats'!C6)","v":""},{"$f":"IF('Données relatives aux candidats'!D6=\"\",\"\",'Données relatives aux candidats'!D6)","v":""},{"$nulls":6},{"$f":"IF('Données relatives aux candidats'!L6=\"\",\"\",'Données relatives aux candidats'!L6)","v":""},{"$f":"IF('Données relatives aux candidats'!M6=\"\",\"\",'Données relatives aux candidats'!M6)","v":""}]
[{"$f":"IF('Données relatives aux candidats'!A7=\"\",\"\",'Données relatives aux candidats'!A7)","v":""},{"$f":"IF('Données relatives aux candidats'!B7=\"\",\"\",'Données relatives aux candidats'!B7)","v":""},{"$f":"IF('Données relatives aux candidats'!C7=\"\",\"\",'Données relatives aux candidats'!C7)","v":""},{"$f":"IF('Données relatives aux candidats'!D7=\"\",\"\",'Données relatives aux candidats'!D7)","v":""},{"$nulls":6},{"$f":"IF('Données relatives aux candidats'!L7=\"\",\"\",'Données relatives aux candidats'!L7)","v":""},{"$f":"IF('Données relatives aux candidats'!M7=\"\",\"\",'Données relatives aux candidats'!M7)","v":""}]
[{"$f":"IF('Données relatives aux candidats'!A8=\"\",\"\",'Données relatives aux candidats'!A8)","v":""},{"$f":"IF('Données relatives aux candidats'!B8=\"\",\"\",'Données relatives aux candidats'!B8)","v":""},{"$f":"IF('Données relatives aux candidats'!C8=\"\",\"\",'Données relatives aux candidats'!C8)","v":""},{"$f":"IF('Données relatives aux candidats'!D8=\"\",\"\",'Données relatives aux candidats'!D8)","v":""},{"$nulls":6},{"$f":"IF('Données relatives aux candidats'!L8=\"\",\"\",'Données relatives aux candidats'!L8)","v":""},{"$f":"IF('Données relatives aux candidats'!M8=\"\",\"\",'Données relatives aux candidats'!M8)","v":""}]
[{"$f":"IF('Données relatives aux candidats'!A9=\"\",\"\",'Données relatives aux candidats'!A9)","v":""},{"$f":"IF('Données relatives aux candidats'!B9=\"\",\"\",'Données relatives aux candidats'!B9)","v":""},{"$f":"IF('Données relatives aux candidats'!C9=\"\",\"\",'Données relatives aux candidats'!C9)","v":""},{"$f":"IF('Données relatives aux candidats'!D9=\"\",\"\",'Données relatives aux candidats'!D9)","v":""},{"$nulls":6},{"$f":"IF('Données relatives aux candidats'!L9=\"\",\"\",'Données relatives aux candidats'!L9)","v":""},{"$f":"IF('Données relatives aux candidats'!M9=\"\",\"\",'Données relatives aux candidats'!M9)","v":""}]
[{"$f":"IF('Données relatives aux candidats'!A10=\"\",\"\",'Données relatives aux candidats'!A10)","v":""},{"$f":"IF('Données relatives aux candidats'!B10=\"\",\"\",'Données relatives aux candidats'!B10)","v":""},{"$f":"IF('Données relatives aux candidats'!C10=\"\",\"\",'Données relatives aux candidats'!C10)","v":""},{"$f":"IF('Données relatives aux candidats'!D10=\"\",\"\",'Données relatives aux candidats'!D10)","v":""},{"$nulls":6},{"$f":"IF('Données relatives aux candidats'!L10=\"\",\"\",'Données relatives aux candidats'!L10)","v":""},{"$f":"IF('Données relatives aux candidats'!M10=\"\",\"\",'Données relatives aux candidats'!M10)","v":""}]
[{"$f":"IF('Données relatives aux candidats'!A11=\"\",\"\",'Données relatives aux candidats'!A11)","v":""},{"$f":"IF('Données relatives aux candidats'!B11=\"\",\"\",'Données relatives aux candidats'!B11)","v":""},{"$f":"IF('Données relatives aux candidats'!C11=\"\",\"\",'Données relatives aux candidats'!C11)","v":""},{"$f":"IF('Données relatives aux candidats'!D11=\"\",\"\",'Données relatives aux candidats'!D11)","v":""},{"$nulls":6},{"$f":"IF('Données relatives aux candidats'!L11=\"\",\"\",'Données relatives aux candidats'!L11)","v":""},{"$f":"IF('Données relatives aux candidats'!M11=\"\",\"\",'Données relatives aux candidats'!M11)","v":""}]
[{"$f":"IF('Données relatives aux candidats'!A12=\"\",\"\",'Données relatives aux candidats'!A12)","v":""},{"$f":"IF('Données relatives aux candidats'!B12=\"\",\"\",'Données relatives aux candidats'!B12)","v":""},{"$f":"IF('Données relatives aux candidats'!C12=\"\",\"\",'Données relatives aux candidats'!C12)","v":""},{"$f":"IF('Données relatives aux candidats'!D12=\"\",\"\",'Données relatives aux candidats'!D12)","v":""},{"$nulls":6},{"$f":"IF('Données relatives aux candidats'!L12=\"\",\"\",'Données relatives aux candidats'!L12)","v":""},{"$f":"IF('Données relatives aux candidats'!M12=\"\",\"\",'Données relatives aux candidats'!M12)","v":""}]
[{"$f":"IF('Données relatives aux candidats'!A13=\"\",\"\",'Données relatives aux candidats'!A13)","v":""},{"$f":"IF('Données relatives aux candidats'!B13=\"\",\"\",'Données relatives aux candidats'!B13)","v":""},{"$f":"IF('Données relatives aux candidats'!C13=\"\",\"\",'Données relatives aux candidats'!C13)","v":""},{"$f":"IF('Données relatives aux candidats'!D13=\"\",\"\",'Données relatives aux candidats'!D13)","v":""},{"$nulls":6},{"$f":"IF('Données relatives aux candidats'!L13=\"\",\"\",'Données relatives aux candidats'!L13)","v":""},{"$f":"IF('Données relatives aux candidats'!M13=\"\",\"\",'Données relatives aux candidats'!M13)","v":""}]
[{"$f":"IF('Données relatives aux candidats'!A14=\"\",\"\",'Données relatives aux candidats'!A14)","v":""},{"$f":"IF('Données relatives aux candidats'!B14=\"\",\"\",'Données relatives aux candidats'!B14)","v":""},{"$f":"IF('Données relatives aux candidats'!C14=\"\",\"\",'Données relatives aux candidats'!C14)","v":""},{"$f":"IF('Données relatives aux candidats'!D14=\"\",\"\",'Données relatives aux candidats'!D14)","v":""},{"$nulls":6},{"$f":"IF('Données relatives aux candidats'!L14=\"\",\"\",'Données relatives aux candidats'!L14)","v":""},{"$f":"IF('Données relatives aux candidats'!M14=\"\",\"\",'Données relatives aux candidats'!M14)","v":""}]
[{"$f":"IF('Données relatives aux candidats'!A15=\"\",\"\",'Données relatives aux candidats'!A15)","v":""},{"$f":"IF('Données relatives aux candidats'!B15=\"\",\"\",'Données relatives aux candidats'!B15)","v":""},{"$f":"IF('Données relatives aux candidats'!C15=\"\",\"\",'Données relatives aux candidats'!C15)","v":""},{"$f":"IF('Données relatives aux candidats'!D15=\"\",\"\",'Données relatives aux candidats'!D15)","v":""},{"$nulls":6},{"$f":"IF('Données relatives aux candidats'!L15=\"\",\"\",'Données relatives aux candidats'!L15)","v":""},{"$f":"IF('Données relatives aux candidats'!M15=\"\",\"\",'Données relatives aux candidats'!M15)","v":""}]
[{"$f":"IF('Données relatives aux candidats'!A16=\"\",\"\",'Données relatives aux candidats'!A16)","v":""},{"$f":"IF('Données relatives aux candidats'!B16=\"\",\"\",'Données relatives aux candidats'!B16)","v":""},{"$f":"IF('Données relatives aux candidats'!C16=\"\",\"\",'Données relatives aux candidats'!C16)","v":""},{"$f":"IF('Données relatives aux candidats'!D16=\"\",\"\",'Données relatives aux candidats'!D16)","v":""},{"$nulls":6},{"$f":"IF('Données relatives aux candidats'!L16=\"\",\"\",'Données relatives aux candidats'!L16)","v":""},{"$f":"IF('Données relatives aux candidats'!M16=\"\",\"\",'Données relatives aux candidats'!M16)","v":""}]
[{"$f":"IF('Données relatives aux candidats'!A17=\"\",\"\",'Données relatives aux candidats'!A17)","v":""},{"$f":"IF('Données relatives aux candidats'!B17=\"\",\"\",'Données relatives aux candidats'!B17)","v":""},{"$f":"IF('Données relatives aux candidats'!C17=\"\",\"\",'Données relatives aux candidats'!C17)","v":""},{"$f":"IF('Données relatives aux candidats'!D17=\"\",\"\",'Données relatives aux candidats'!D17)","v":""},{"$nulls":6},{"$f":"IF('Données relatives aux candidats'!L17=\"\",\"\",'Données relatives aux candidats'!L17)","v":""},{"$f":"IF('Données relatives aux candidats'!M17=\"\",\"\",'Données relatives aux candidats'!M17)","v":""}]
[{"$f":"IF('Données relatives aux candidats'!A18=\"\",\"\",'Données relatives aux candidats'!A18)","v":""},{"$f":"IF('Données relatives aux candidats'!B18=\"\",\"\",'Données relatives aux candidats'!B18)","v":""},{"$f":"IF('Données relatives aux candidats'!C18=\"\",\"\",'Données relatives aux candidats'!C18)","v":""},{"$f":"IF('Données relatives aux candidats'!D18=\"\",\"\",'Données relatives aux candidats'!D18)","v":""},{"$nulls":6},{"$f":"IF('Données relatives aux candidats'!L18=\"\",\"\",'Données relatives aux candidats'!L18)","v":""},{"$f":"IF('Données relatives aux candidats'!M18=\"\",\"\",'Données relatives aux candidats'!M18)","v":""}]
[{"$f":"IF('Données relatives aux candidats'!A19=\"\",\"\",'Données relatives aux candidats'!A19)","v":""},{"$f":"IF('Données relatives aux candidats'!B19=\"\",\"\",'Données relatives aux candidats'!B19)","v":""},{"$f":"IF('Données relatives aux candidats'!C19=\"\",\"\",'Données relatives aux candidats'!C19)","v":""},{"$f":"IF('Données relatives aux candidats'!D19=\"\",\"\",'Données relatives aux candidats'!D19)","v":""},{"$nulls":6},{"$f":"IF('Données relatives aux candidats'!L19=\"\",\"\",'Données relatives aux candidats'!L19)","v":""},{"$f":"IF('Données relatives aux candidats'!M19=\"\",\"\",'Données relatives aux candidats'!M19)","v":""}]
[{"$f":"IF('Données relatives aux candidats'!A20=\"\",\"\",'Données relatives aux candidats'!A20)","v":""},{"$f":"IF('Données relatives aux candidats'!B20=\"\",\"\",'Données relatives aux candidats'!B20)","v":""},{"$f":"IF('Données relatives aux candidats'!C20=\"\",\"\",'Données relatives aux candidats'!C20)","v":""},{"$f":"IF('Données relatives aux candidats'!D20=\"\",\"\",'Données relatives aux candidats'!D20)","v":""},{"$nulls":6},{"$f":"IF('Données relatives aux candidats'!L20=\"\",\"\",'Données relatives aux candidats'!L20)","v":""},{"$f":"IF('Données relatives aux candidats'!M20=\"\",\"\",'Données relatives aux candidats'!M20)","v":""}]
[{"$f":"IF('Données relatives aux candidats'!A21=\"\",\"\",'Données relatives aux candidats'!A21)","v":""},{"$f":"IF('Données relatives aux candidats'!B21=\"\",\"\",'Données relatives aux candidats'!B21)","v":""},{"$f":"IF('Données relatives aux candidats'!C21=\"\",\"\",'Données relatives aux candidats'!C21)","v":""},{"$f":"IF('Données relatives aux candidats'!D21=\"\",\"\",'Données relatives aux candidats'!D21)","v":""},{"$nulls":6},{"$f":"IF('Données relatives aux candidats'!L21=\"\",\"\",'Données relatives aux candidats'!L21)","v":""},{"$f":"IF('Données relatives aux candidats'!M21=\"\",\"\",'Données relatives aux candidats'!M21)","v":""}]
[{"$f":"IF('Données relatives aux candidats'!A22=\"\",\"\",'Données relatives aux candidats'!A22)","v":""},{"$f":"IF('Données relatives aux candidats'!B22=\"\",\"\",'Données relatives aux candidats'!B22)","v":""},{"$f":"IF('Données relatives aux candidats'!C22=\"\",\"\",'Données relatives aux candidats'!C22)","v":""},{"$f":"IF('Données relatives aux candidats'!D22=\"\",\"\",'Données relatives aux candidats'!D22)","v":""},{"$nulls":6},{"$f":"IF('Données relatives aux candidats'!L22=\"\",\"\",'Données relatives aux candidats'!L22)","v":""},{"$f":"IF('Données relatives aux candidats'!M22=\"\",\"\",'Données relatives aux candidats'!M22)","v":""}]
[{"$f":"IF('Données relatives aux candidats'!A23=\"\",\"\",'Données relatives aux candidats'!A23)","v":""},{"$f":"IF('Données relatives aux candidats'!B23=\"\",\"\",'Données relatives aux candidats'!B23)","v":""},{"$f":"IF('Données relatives aux candidats'!C23=\"\",\"\",'Données relatives aux candidats'!C23)","v":""},{"$f":"IF('Données relatives aux candidats'!D23=\"\",\"\",'Données relatives aux candidats'!D23)","v":""},{"$nulls":6},{"$f":"IF('Données relatives aux candidats'!L23=\"\",\"\",'Données relatives aux candidats'!L23)","v":""},{"$f":"IF('Données relatives aux candidats'!M23=\"\",\"\",'Données relatives aux candidats'!M23)","v":""}]
[{"$f":"IF('Données relatives aux candidats'!A24=\"\",\"\",'Données relatives aux candidats'!A24)","v":""},{"$f":"IF('Données relatives aux candidats'!B24=\"\",\"\",'Données relatives aux candidats'!B24)","v":""},{"$f":"IF('Données relatives aux candidats'!C24=\"\",\"\",'Données relatives aux candidats'!C24)","v":""},{"$f":"IF('Données relatives aux candidats'!D24=\"\",\"\",'Données relatives aux candidats'!D24)","v":""},{"$nulls":6},{"$f":"IF('Données relatives aux candidats'!L24=\"\",\"\",'Données relatives aux candidats'!L24)","v":""},{"$f":"IF('Données relatives aux candidats'!M24=\"\",\"\",'Données relatives aux candidats'!M24)","v":""}]
[{"$f":"IF('Données relatives aux candidats'!A25=\"\",\"\",'Données relatives aux candidats'!A25)","v":""},{"$f":"IF('Données relatives aux candidats'!B25=\"\",\"\",'Données relatives aux candidats'!B25)","v":""},{"$f":"IF('Données relatives aux candidats'!C25=\"\",\"\",'Données relatives aux candidats'!C25)","v":""},{"$f":"IF('Données relatives aux candidats'!D25=\"\",\"\",'Données relatives aux candidats'!D25)","v":""},{"$nulls":6},{"$f":"IF('Données relatives aux candidats'!L25=\"\",\"\",'Données relatives aux candidats'!L25)","v":""},{"$f":"IF('Données relatives aux candidats'!M25=\"\",\"\",'Données relatives aux candidats'!M25)","v":""}]
[{"$f":"IF('Données relatives aux candidats'!A26=\"\",\"\",'Données relatives aux candidats'!A26)","v":""},{"$f":"IF('Données relatives aux candidats'!B26=\"\",\"\",'Données relatives aux candidats'!B26)","v":""},{"$f":"IF('Données relatives aux candidats'!C26=\"\",\"\",'Données relatives aux candidats'!C26)","v":""},{"$f":"IF('Données relatives aux candidats'!D26=\"\",\"\",'Données relatives aux candidats'!D26)","v":""},{"$nulls":6},{"$f":"IF('Données relatives aux candidats'!L26=\"\",\"\",'Données relatives aux candidats'!L26)","v":""},{"$f":"IF('Données relatives aux candidats'!M26=\"\",\"\",'Données relatives aux candidats'!M26)","v":""}]
[{"$f":"IF('Données relatives aux candidats'!A27=\"\",\"\",'Données relatives aux candidats'!A27)","v":""},{"$f":"IF('Données relatives aux candidats'!B27=\"\",\"\",'Données relatives aux candidats'!B27)","v":""},{"$f":"IF('Données relatives aux candidats'!C27=\"\",\"\",'Données relatives aux candidats'!C27)","v":""},{"$f":"IF('Données relatives aux candidats'!D27=\"\",\"\",'Données relatives aux candidats'!D27)","v":""},{"$nulls":6},{"$f":"IF('Données relatives aux candidats'!L27=\"\",\"\",'Données relatives aux candidats'!L27)","v":""},{"$f":"IF('Données relatives aux candidats'!M27=\"\",\"\",'Données relatives aux candidats'!M27)","v":""}]
[{"$f":"IF('Données relatives aux candidats'!A28=\"\",\"\",'Données relatives aux candidats'!A28)","v":""},{"$f":"IF('Données relatives aux candidats'!B28=\"\",\"\",'Données relatives aux candidats'!B28)","v":""},{"$f":"IF('Données relatives aux candidats'!C28=\"\",\"\",'Données relatives aux candidats'!C28)","v":""},{"$f":"IF('Données relatives aux candidats'!D28=\"\",\"\",'Données relatives aux candidats'!D28)","v":""},{"$nulls":6},{"$f":"IF('Données relatives aux candidats'!L28=\"\",\"\",'Données relatives aux candidats'!L28)","v":""},{"$f":"IF('Données relatives aux candidats'!M28=\"\",\"\",'Données relatives aux candidats'!M28)","v":""}]
[{"$f":"IF('Données relatives aux candidats'!A29=\"\",\"\",'Données relatives aux candidats'!A29)","v":""},{"$f":"IF('Données relatives aux candidats'!B29=\"\",\"\",'Données relatives aux candidats'!B29)","v":""},{"$f":"IF('Données relatives aux candidats'!C29=\"\",\"\",'Données relatives aux candidats'!C29)","v":""},{"$f":"IF('Données relatives aux candidats'!D29=\"\",\"\",'Données relatives aux candidats'!D29)","v":""},{"$nulls":6},{"$f":"IF('Données relatives aux candidats'!L29=\"\",\"\",'Données relatives aux candidats'!L29)","v":""},{"$f":"IF('Données relatives aux candidats'!M29=\"\",\"\",'Données relatives aux candidats'!M29)","v":""}]
[{"$f":"IF('Données relatives aux candidats'!A30=\"\",\"\",'Données relatives aux candidats'!A30)","v":""},{"$f":"IF('Données relatives aux candidats'!B30=\"\",\"\",'Données relatives aux candidats'!B30)","v":""},{"$f":"IF('Données relatives aux candidats'!C30=\"\",\"\",'Données relatives aux candidats'!C30)","v":""},{"$f":"IF('Données relatives aux candidats'!D30=\"\",\"\",'Données relatives aux candidats'!D30)","v":""},{"$nulls":6},{"$f":"IF('Données relatives aux candidats'!L30=\"\",\"\",'Données relatives aux candidats'!L30)","v":""},{"$f":"IF('Données relatives aux candidats'!M30=\"\",\"\",'Données relatives aux candidats'!M30)","v":""}]
[{"$f":"IF('Données relatives aux candidats'!A31=\"\",\"\",'Données relatives aux candidats'!A31)","v":""},{"$f":"IF('Données relatives aux candidats'!B31=\"\",\"\",'Données relatives aux candidats'!B31)","v":""},{"$f":"IF('Données relatives aux candidats'!C31=\"\",\"\",'Données relatives aux candidats'!C31)","v":""},{"$f":"IF('Données relatives aux candidats'!D31=\"\",\"\",'Données relatives aux candidats'!D31)","v":""},{"$nulls":6},{"$f":"IF('Données relatives aux candidats'!L31=\"\",\"\",'Données relatives aux candidats'!L31)","v":""},{"$f":"IF('Données relatives aux candidats'!M31=\"\",\"\",'Données relatives aux candidats'!M31)","v":""}]
[{"$f":"IF('Données relatives aux candidats'!A32=\"\",\"\",'Données relatives aux candidats'!A32)","v":""},{"$f":"IF('Données relatives aux candidats'!B32=\"\",\"\",'Données relatives aux candidats'!B32)","v":""},{"$f":"IF('Données relatives aux candidats'!C32=\"\",\"\",'Données relatives aux candidats'!C32)","v":""},{"$f":"IF('Données relatives aux candidats'!D32=\"\",\"\",'Données relatives aux candidats'!D32)","v":""},{"$nulls":6},{"$f":"IF('Données relatives aux candidats'!L32=\"\",\"\",'Données relatives aux candidats'!L32)","v":""},{"$f":"IF('Données relatives aux candidats'!M32=\"\",\"\",'Données relatives aux candidats'!M32)","v":""}]
[{"$f":"IF('Données relatives aux candidats'!A33=\"\",\"\",'Données relatives aux candidats'!A33)","v":""},{"$f":"IF('Données relatives aux candidats'!B33=\"\",\"\",'Données relatives aux candidats'!B33)","v":""},{"$f":"IF('Données relatives aux candidats'!C33=\"\",\"\",'Données relatives aux candidats'!C33)","v":""},{"$f":"IF('Données relatives aux candidats'!D33=\"\",\"\",'Données relatives aux candidats'!D33)","v":""},{"$nulls":6},{"$f":"IF('Données relatives aux candidats'!L33=\"\",\"\",'Données relatives aux candidats'!L33)","v":""},{"$f":"IF('Données relatives aux candidats'!M33=\"\",\"\",'Données relatives aux candidats'!M33)","v":""}]
[{"$f":"IF('Données relatives aux candidats'!A34=\"\",\"\",'Données relatives aux candidats'!A34)","v":""},{"$f":"IF('Données relatives aux candidats'!B34=\"\",\"\",'Données relatives aux candidats'!B34)","v":""},{"$f":"IF('Données relatives aux candidats'!C34=\"\",\"\",'Données relatives aux candidats'!C34)","v":""},{"$f":"IF('Données relatives aux candidats'!D34=\"\",\"\",'Données relatives aux candidats'!D34)","v":""},{"$nulls":6},{"$f":"IF('Données relatives aux candidats'!L34=\"\",\"\",'Données relatives aux candidats'!L34)","v":""},{"$f":"IF('Données relatives aux candidats'!M34=\"\",\"\",'Données relatives aux candidats'!M34)","v":""}]
[{"$f":"IF('Données relatives aux candidats'!A35=\"\",\"\",'Données relatives aux candidats'!A35)","v":""},{"$f":"IF('Données relatives aux candidats'!B35=\"\",\"\",'Données relatives aux candidats'!B35)","v":""},{"$f":"IF('Données relatives aux candidats'!C35=\"\",\"\",'Données relatives aux candidats'!C35)","v":""},{"$f":"IF('Données relatives aux candidats'!D35=\"\",\"\",'Données relatives aux candidats'!D35)","v":""},{"$nulls":6},{"$f":"IF('Données relatives aux candidats'!L35=\"\",\"\",'Données relatives aux candidats'!L35)","v":""},{"$f":"IF('Données relatives aux candidats'!M35=\"\",\"\",'Données relatives aux candidats'!M35)","v":""}]
[{"$f":"IF('Données relatives aux candidats'!A36=\"\",\"\",'Données relatives aux candidats'!A36)","v":""},{"$f":"IF('Données relatives aux candidats'!B36=\"\",\"\",'Données relatives aux candidats'!B36)","v":""},{"$f":"IF('Données relatives aux candidats'!C36=\"\",\"\",'Données relatives aux candidats'!C36)","v":""},{"$f":"IF('Données relatives aux candidats'!D36=\"\",\"\",'Données relatives aux candidats'!D36)","v":""},{"$nulls":6},{"$f":"IF('Données relatives aux candidats'!L36=\"\",\"\",'Données relatives aux candidats'!L36)","v":""},{"$f":"IF('Données relatives aux candidats'!M36=\"\",\"\",'Données relatives aux candidats'!M36)","v":""}]
[{"$f":"IF('Données relatives aux candidats'!A37=\"\",\"\",'Données relatives aux candidats'!A37)","v":""},{"$f":"IF('Données relatives aux candidats'!B37=\"\",\"\",'Données relatives aux candidats'!B37)","v":""},{"$f":"IF('Données relatives aux candidats'!C37=\"\",\"\",'Données relatives aux candidats'!C37)","v":""},{"$f":"IF('Données relatives aux candidats'!D37=\"\",\"\",'Données relatives aux candidats'!D37)","v":""},{"$nulls":6},{"$f":"IF('Données relatives aux candidats'!L37=\"\",\"\",'Données relatives aux candidats'!L37)","v":""},{"$f":"IF('Données relatives aux candidats'!M37=\"\",\"\",'Données relatives aux candidats'!M37)","v":""}]
[{"$f":"IF('Données relatives aux candidats'!A38=\"\",\"\",'Données relatives aux candidats'!A38)","v":""},{"$f":"IF('Données relatives aux candidats'!B38=\"\",\"\",'Données relatives aux candidats'!B38)","v":""},{"$f":"IF('Données relatives aux candidats'!C38=\"\",\"\",'Données relatives aux candidats'!C38)","v":""},{"$f":"IF('Données relatives aux candidats'!D38=\"\",\"\",'Données relatives aux candidats'!D38)","v":""},{"$nulls":6},{"$f":"IF('Données relatives aux candidats'!L38=\"\",\"\",'Données relatives aux candidats'!L38)","v":""},{"$f":"IF('Données relatives aux candidats'!M38=\"\",\"\",'Données relatives aux candidats'!M38)","v":""}]
[{"$f":"IF('Données relatives aux candidats'!A39=\"\",\"\",'Données relatives aux candidats'!A39)","v":""},{"$f":"IF('Données relatives aux candidats'!B39=\"\",\"\",'Données relatives aux candidats'!B39)","v":""},{"$f":"IF('Données relatives aux candidats'!C39=\"\",\"\",'Données relatives aux candidats'!C39)","v":""},{"$f":"IF('Données relatives aux candidats'!D39=\"\",\"\",'Données relatives aux candidats'!D39)","v":""},{"$nulls":6},{"$f":"IF('Données relatives aux candidats'!L39=\"\",\"\",'Données relatives aux candidats'!L39)","v":""},{"$f":"IF('Données relatives aux candidats'!M39=\"\",\"\",'Données relatives aux candidats'!M39)","v":""}]
[{"$f":"IF('Données relatives aux candidats'!A40=\"\",\"\",'Données relatives aux candidats'!A40)","v":""},{"$f":"IF('Données relatives aux candidats'!B40=\"\",\"\",'Données relatives aux candidats'!B40)","v":""},{"$f":"IF('Données relatives aux candidats'!C40=\"\",\"\",'Données relatives aux candidats'!C40)","v":""},{"$f":"IF('Données relatives aux candidats'!D40=\"\",\"\",'Données relatives aux candidats'!D40)","v":""},{"$nulls":6},{"$f":"IF('Données relatives aux candidats'!L40=\"\",\"\",'Données relatives aux candidats'!L40)","v":""},{"$f":"IF('Données relatives aux candidats'!M40=\"\",\"\",'Données relatives aux candidats'!M40)","v":""}]
[{"$f":"IF('Données relatives aux candidats'!A41=\"\",\"\",'Données relatives aux candidats'!A41)","v":""},{"$f":"IF('Données relatives aux candidats'!B41=\"\",\"\",'Données relatives aux candidats'!B41)","v":""},{"$f":"IF('Données relatives aux candidats'!C41=\"\",\"\",'Données relatives aux candidats'!C41)","v":""},{"$f":"IF('Données relatives aux candidats'!D41=\"\",\"\",'Données relatives aux candidats'!D41)","v":""},{"$nulls":6},{"$f":"IF('Données relatives aux candidats'!L41=\"\",\"\",'Données relatives aux candidats'!L41)","v":""},{"$f":"IF('Données relatives aux candidats'!M41=\"\",\"\",'Données relatives aux candidats'!M41)","v":""}]
[{"$f":"IF('Données relatives aux candidats'!A42=\"\",\"\",'Données relatives aux candidats'!A42)","v":""},{"$f":"IF('Données relatives aux candidats'!B42=\"\",\"\",'Données relatives aux candidats'!B42)","v":""},{"$f":"IF('Données relatives aux candidats'!C42=\"\",\"\",'Données relatives aux candidats'!C42)","v":""},{"$f":"IF('Données relatives aux candidats'!D42=\"\",\"\",'Données relatives aux candidats'!D42)","v":""},{"$nulls":6},{"$f":"IF('Données relatives aux candidats'!L42=\"\",\"\",'Données relatives aux candidats'!L42)","v":""},{"$f":"IF('Données relatives aux candidats'!M42=\"\",\"\",'Données relatives aux candidats'!M42)","v":""}]
[{"$f":"IF('Données relatives aux candidats'!A43=\"\",\"\",'Données relatives aux candidats'!A43)","v":""},{"$f":"IF('Données relatives aux candidats'!B43=\"\",\"\",'Données relatives aux candidats'!B43)","v":""},{"$f":"IF('Données relatives aux candidats'!C43=\"\",\"\",'Données relatives aux candidats'!C43)","v":""},{"$f":"IF('Données relatives aux candidats'!D43=\"\",\"\",'Données relatives aux candidats'!D43)","v":""},{"$nulls":6},{"$f":"IF('Données relatives aux candidats'!L43=\"\",\"\",'Données relatives aux candidats'!L43)","v":""},{"$f":"IF('Données relatives aux candidats'!M43=\"\",\"\",'Données relatives aux candidats'!M43)","v":""}]
[{"$f":"IF('Données relatives aux candidats'!A44=\"\",\"\",'Données relatives aux candidats'!A44)","v":""},{"$f":"IF('Données relatives aux candidats'!B44=\"\",\"\",'Données relatives aux candidats'!B44)","v":""},{"$f":"IF('Données relatives aux candidats'!C44=\"\",\"\",'Données relatives aux candidats'!C44)","v":""},{"$f":"IF('Données relatives aux candidats'!D44=\"\",\"\",'Données relatives aux candidats'!D44)","v":""},{"$nulls":6},{"$f":"IF('Données relatives aux candidats'!L44=\"\",\"\",'Données relatives aux candidats'!L44)","v":""},{"$f":"IF('Données relatives aux candidats'!M44=\"\",\"\",'Données relatives aux candidats'!M44)","v":""}]
[{"$f":"IF('Données relatives aux candidats'!A45=\"\",\"\",'Données relatives aux candidats'!A45)","v":""},{"$f":"IF('Données relatives aux candidats'!B45=\"\",\"\",'Données relatives aux candidats'!B45)","v":""},{"$f":"IF('Données relatives aux candidats'!C45=\"\",\"\",'Données relatives aux candidats'!C45)","v":""},{"$f":"IF('Données relatives aux candidats'!D45=\"\",\"\",'Données relatives aux candidats'!D45)","v":""},{"$nulls":6},{"$f":"IF('Données relatives aux candidats'!L45=\"\",\"\",'Données relatives aux candidats'!L45)","v":""},{"$f":"IF('Données relatives aux candidats'!M45=\"\",\"\",'Données relatives aux candidats'!M45)","v":""}]
[{"$f":"IF('Données relatives aux candidats'!A46=\"\",\"\",'Données relatives aux candidats'!A46)","v":""},{"$f":"IF('Données relatives aux candidats'!B46=\"\",\"\",'Données relatives aux candidats'!B46)","v":""},{"$f":"IF('Données relatives aux candidats'!C46=\"\",\"\",'Données relatives aux candidats'!C46)","v":""},{"$f":"IF('Données relatives aux candidats'!D46=\"\",\"\",'Données relatives aux candidats'!D46)","v":""},{"$nulls":6},{"$f":"IF('Données relatives aux candidats'!L46=\"\",\"\",'Données relatives aux candidats'!L46)","v":""},{"$f":"IF('Données relatives aux candidats'!M46=\"\",\"\",'Données relatives aux candidats'!M46)","v":""}]
[{"$f":"IF('Données relatives aux candidats'!A47=\"\",\"\",'Données relatives aux candidats'!A47)","v":""},{"$f":"IF('Données relatives aux candidats'!B47=\"\",\"\",'Données relatives aux candidats'!B47)","v":""},{"$f":"IF('Données relatives aux candidats'!C47=\"\",\"\",'Données relatives aux candidats'!C47)","v":""},{"$f":"IF('Données relatives aux candidats'!D47=\"\",\"\",'Données relatives aux candidats'!D47)","v":""},{"$nulls":6},{"$f":"IF('Données relatives aux candidats'!L47=\"\",\"\",'Données relatives aux candidats'!L47)","v":""},{"$f":"IF('Données relatives aux candidats'!M47=\"\",\"\",'Données relatives aux candidats'!M47)","v":""}]
[{"$f":"IF('Données relatives aux candidats'!A48=\"\",\"\",'Données relatives aux candidats'!A48)","v":""},{"$f":"IF('Données relatives aux candidats'!B48=\"\",\"\",'Données relatives aux candidats'!B48)","v":""},{"$f":"IF('Données relatives aux candidats'!C48=\"\",\"\",'Données relatives aux candidats'!C48)","v":""},{"$f":"IF('Données relatives aux candidats'!D48=\"\",\"\",'Données relatives aux candidats'!D48)","v":""},{"$nulls":6},{"$f":"IF('Données relatives aux candidats'!L48=\"\",\"\",'Données relatives aux candidats'!L48)","v":""},{"$f":"IF('Données relatives aux candidats'!M48=\"\",\"\",'Données relatives aux candidats'!M48)","v":""}]
[{"$f":"IF('Données relatives aux candidats'!A49=\"\",\"\",'Données relatives aux candidats'!A49)","v":""},{"$f":"IF('Données relatives aux candidats'!B49=\"\",\"\",'Données relatives aux candidats'!B49)","v":""},{"$f":"IF('Données relatives aux candidats'!C49=\"\",\"\",'Données relatives aux candidats'!C49)","v":""},{"$f":"IF('Données relatives aux candidats'!D49=\"\",\"\",'Données relatives aux candidats'!D49)","v":""},{"$nulls":6},{"$f":"IF('Données relatives aux candidats'!L49=\"\",\"\",'Données relatives aux candidats'!L49)","v":""},{"$f":"IF('Données relatives aux candidats'!M49=\"\",\"\",'Données relatives aux candidats'!M49)","v":""}]
[{"$f":"IF('Données relatives aux candidats'!A50=\"\",\"\",'Données relatives aux candidats'!A50)","v":""},{"$f":"IF('Données relatives aux candidats'!B50=\"\",\"\",'Données relatives aux candidats'!B50)","v":""},{"$f":"IF('Données relatives aux candidats'!C50=\"\",\"\",'Données relatives aux candidats'!C50)","v":""},{"$f":"IF('Données relatives aux candidats'!D50=\"\",\"\",'Données relatives aux candidats'!D50)","v":""},{"$nulls":6},{"$f":"IF('Données relatives aux candidats'!L50=\"\",\"\",'Données relatives aux candidats'!L50)","v":""},{"$f":"IF('Données relatives aux candidats'!M50=\"\",\"\",'Données relatives aux candidats'!M50)","v":""}]
[{"$f":"IF('Données relatives aux candidats'!A51=\"\",\"\",'Données relatives aux candidats'!A51)","v":""},{"$f":"IF('Données relatives aux candidats'!B51=\"\",\"\",'Données relatives aux candidats'!B51)","v":""},{"$f":"IF('Données relatives aux candidats'!C51=\"\",\"\",'Données relatives aux candidats'!C51)","v":""},{"$f":"IF('Données relatives aux candidats'!D51=\"\",\"\",'Données relatives aux candidats'!D51)","v":""},{"$nulls":6},{"$f":"IF('Données relatives aux candidats'!L51=\"\",\"\",'Données relatives aux candidats'!L51)","v":""},{"$f":"IF('Données relatives aux candidats'!M51=\"\",\"\",'Données relatives aux candidats'!M51)","v":""}]
[{"$f":"IF('Données relatives aux candidats'!A52=\"\",\"\",'Données relatives aux candidats'!A52)","v":""},{"$f":"IF('Données relatives aux candidats'!B52=\"\",\"\",'Données relatives aux candidats'!B52)","v":""},{"$f":"IF('Données relatives aux candidats'!C52=\"\",\"\",'Données relatives aux candidats'!C52)","v":""},{"$f":"IF('Données relatives aux candidats'!D52=\"\",\"\",'Données relatives aux candidats'!D52)","v":""},{"$nulls":6},{"$f":"IF('Données relatives aux candidats'!L52=\"\",\"\",'Données relatives aux candidats'!L52)","v":""},{"$f":"IF('Données relatives aux candidats'!M52=\"\",\"\",'Données relatives aux candidats'!M52)","v":""}]
[{"$f":"IF('Données relatives aux candidats'!A53=\"\",\"\",'Données relatives aux candidats'!A53)","v":""},{"$f":"IF('Données relatives aux candidats'!B53=\"\",\"\",'Données relatives aux candidats'!B53)","v":""},{"$f":"IF('Données relatives aux candidats'!C53=\"\",\"\",'Données relatives aux candidats'!C53)","v":""},{"$f":"IF('Données relatives aux candidats'!D53=\"\",\"\",'Données relatives aux candidats'!D53)","v":""},{"$nulls":6},{"$f":"IF('Données relatives aux candidats'!L53=\"\",\"\",'Données relatives aux candidats'!L53)","v":""},{"$f":"IF('Données relatives aux candidats'!M53=\"\",\"\",'Données relatives aux candidats'!M53)","v":""}]
[{"$f":"IF('Données relatives aux candidats'!A54=\"\",\"\",'Données relatives aux candidats'!A54)","v":""},{"$f":"IF('Données relatives aux candidats'!B54=\"\",\"\",'Données relatives aux candidats'!B54)","v":""},{"$f":"IF('Données relatives aux candidats'!C54=\"\",\"\",'Données relatives aux candidats'!C54)","v":""},{"$f":"IF('Données relatives aux candidats'!D54=\"\",\"\",'Données relatives aux candidats'!D54)","v":""},{"$nulls":6},{"$f":"IF('Données relatives aux candidats'!L54=\"\",\"\",'Données relatives aux candidats'!L54)","v":""},{"$f":"IF('Données relatives aux candidats'!M54=\"\",\"\",'Données relatives aux candidats'!M54)","v":""}]
[{"$f":"IF('Données relatives aux candidats'!A55=\"\",\"\",'Données relatives aux candidats'!A55)","v":""},{"$f":"IF('Données relatives aux candidats'!B55=\"\",\"\",'Données relatives aux candidats'!B55)","v":""},{"$f":"IF('Données relatives aux candidats'!C55=\"\",\"\",'Données relatives aux candidats'!C55)","v":""},{"$f":"IF('Données relatives aux candidats'!D55=\"\",\"\",'Données relatives aux candidats'!D55)","v":""},{"$nulls":6},{"$f":"IF('Données relatives aux candidats'!L55=\"\",\"\",'Données relatives aux candidats'!L55)","v":""},{"$f":"IF('Données relatives aux candidats'!M55=\"\",\"\",'Données relatives aux candidats'!M55)","v":""}]
[{"$f":"IF('Données relatives aux candidats'!A56=\"\",\"\",'Données relatives aux candidats'!A56)","v":""},{"$f":"IF('Données relatives aux candidats'!B56=\"\",\"\",'Données relatives aux candidats'!B56)","v":""},{"$f":"IF('Données relatives aux candidats'!C56=\"\",\"\",'Données relatives aux candidats'!C56)","v":""},{"$f":"IF('Données relatives aux candidats'!D56=\"\",\"\",'Données relatives aux candidats'!D56)","v":""},{"$nulls":6},{"$f":"IF('Données relatives aux candidats'!L56=\"\",\"\",'Données relatives aux candidats'!L56)","v":""},{"$f":"IF('Données relatives aux candidats'!M56=\"\",\"\",'Données relatives aux candidats'!M56)","v":""}]
[{"$f":"IF('Données relatives aux candidats'!A57=\"\",\"\",'Données relatives aux candidats'!A57)","v":""},{"$f":"IF('Données relatives aux candidats'!B57=\"\",\"\",'Données relatives aux candidats'!B57)","v":""},{"$f":"IF('Données relatives aux candidats'!C57=\"\",\"\",'Données relatives aux candidats'!C57)","v":""},{"$f":"IF('Données relatives aux candidats'!D57=\"\",\"\",'Données relatives aux candidats'!D57)","v":""},{"$nulls":6},{"$f":"IF('Données relatives aux candidats'!L57=\"\",\"\",'Données relatives aux candidats'!L57)","v":""},{"$f":"IF('Données relatives aux candidats'!M57=\"\",\"\",'Données relatives aux candidats'!M57)","v":""}]
[{"$f":"IF('Données relatives aux candidats'!A58=\"\",\"\",'Données relatives aux candidats'!A58)","v":""},{"$f":"IF('Données relatives aux candidats'!B58=\"\",\"\",'Données relatives aux candidats'!B58)","v":""},{"$f":"IF('Données relatives aux candidats'!C58=\"\",\"\",'Données relatives aux candidats'!C58)","v":""},{"$f":"IF('Données relatives aux candidats'!D58=\"\",\"\",'Données relatives aux candidats'!D58)","v":""},{"$nulls":6},{"$f":"IF('Données relatives aux candidats'!L58=\"\",\"\",'Données relatives aux candidats'!L58)","v":""},{"$f":"IF('Données relatives aux candidats'!M58=\"\",\"\",'Données relatives aux candidats'!M58)","v":""}]
[{"$f":"IF('Données relatives aux candidats'!A59=\"\",\"\",'Données relatives aux candidats'!A59)","v":""},{"$f":"IF('Données relatives aux candidats'!B59=\"\",\"\",'Données relatives aux candidats'!B59)","v":""},{"$f":"IF('Données relatives aux candidats'!C59=\"\",\"\",'Données relatives aux candidats'!C59)","v":""},{"$f":"IF('Données relatives aux candidats'!D59=\"\",\"\",'Données relatives aux candidats'!D59)","v":""},{"$nulls":6},{"$f":"IF('Données relatives aux candidats'!L59=\"\",\"\",'Données relatives aux candidats'!L59)","v":""},{"$f":"IF('Données relatives aux candidats'!M59=\"\",\"\",'Données relatives aux candidats'!M59)","v":""}]